fUST/lending_fUST_20250323
["ID","MTS","AMOUNT","RATE_DAILY","PERIOD"]
[356577940,1742715040463,-526.78888451,0.00020954,2]
[356577944,1742715043322,-12309.99999272,0.00020954,2]
[356577953,1742715603128,20000.0,0.00012001,2]
[356577954,1742715903103,30000.0,0.00012001,2]
[356577955,1742716010131,-239.10381584,0.00018037,2]
[356577956,1742716048083,-510.18933936,0.00018037,2]
[356577957,1742716048107,-300.0,0.00018219,2]
[356577958,1742716048130,-500.0,0.0001822,2]
[356577959,1742716048154,-500.0,0.0001822,2]
[356577960,1742716048177,-500.0,0.0001822,2]
[356577961,1742716048200,-500.0,0.0001822,2]
[356577962,1742716048223,-282.46577955,0.0001822,2]
[356577963,1742716150102,-417.53422045,0.0001822,2]
[356577964,1742716150125,-590.1383146,0.0001822,2]
[356577965,1742716150148,-300.0,0.0001878,2]
[356577966,1742716150170,-10000.0,0.00018781,2]
[356577967,1742716150191,-3638.45446495,0.00018805,2]
[356577968,1742716155266,-247.36070343,0.00018805,2]
[356577969,1742716203088,10012.22663298,0.00012001,2]
[356578018,1742716238237,-144.91623772,0.00018805,2]
[356578019,1742716238248,-300.0,0.00019778,2]
[356578020,1742716238258,-156.99,0.00019782,2]
[356578021,1742716238267,-1000.79454867,0.00019782,2]
[356578022,1742716238277,-500.0,0.00019782,2]
[356578023,1742716238286,-500.0,0.00019782,2]
[356578024,1742716238295,-500.0,0.00019782,2]
[356578025,1742716238305,-500.0,0.00019782,2]
[356578026,1742716238315,-500.0,0.00019782,2]
[356578027,1742716238325,-500.0,0.00019782,2]
[356578028,1742716238334,-24900.0,0.00019783,2]
[356578029,1742716238344,-165.16115021,0.0002,2]
[356578030,1742716238355,-1152.5726683,0.00020799,2]
[356578031,1742716238364,-173.91371036,0.00020853,2]
[356578032,1742716238374,-5000.0,0.00020854,2]
[356578033,1742716238383,-22778.04864448,0.00020854,2]
[356578034,1742716238394,-19261.64519149,0.00020854,2]
[356578035,1742716238406,-69391.76681738,0.00020854,2]
[356578043,1742716240613,-500.0,0.00019782,2]
[356578044,1742716240623,-500.0,0.00019782,2]
[356578045,1742716240632,-500.0,0.00019782,2]
[356578046,1742716240642,-429.57064699,0.00019782,2]
[356578047,1742716240652,-500.0,0.00019782,2]
[356578048,1742716240663,-500.0,0.00019782,2]
[356578050,1742716240673,-500.0,0.00019782,2]
[356578052,1742716240683,-38405.64313084,0.00020854,2]
[356578068,1742716243385,-236.05595905,0.00019782,2]
[356578069,1742716243395,-172162.89621581,0.00020854,2]
[356578070,1742716243405,-53000.11454915,0.000209,2]
[356578071,1742716243414,-9753.354924,0.000209,6]
[356578072,1742716243424,-151.0,0.00020941,2]
[356578073,1742716243433,-2077.51257861,0.00021049,2]
[356578074,1742716243442,-331.97094143,0.00021153,2]
[356578075,1742716243452,-196.0,0.000212,2]
[356578076,1742716243461,-197.31757807,0.000212,4]
[356578077,1742716243470,-159.82447326,0.00021225,2]
[356578078,1742716243479,-269.27857897,0.00021225,2]
[356578079,1742716243488,-500.0,0.00021225,2]
[356578080,1742716243498,-500.46060297,0.00021225,2]
[356578081,1742716243507,-502.14238514,0.00021225,2]
[356578082,1742716243516,-500.0,0.00021225,2]
[356578083,1742716243525,-501.63375281,0.00021225,2]
[356578084,1742716243535,-154.36271595,0.00021225,2]
[356578085,1742716243544,-503.18056588,0.00021225,2]
[356578086,1742716243553,-500.0,0.00021225,2]
[356578087,1742716243563,-502.7518623,0.00021225,2]
[356578088,1742716243572,-344.99681864,0.00021225,2]
[356578089,1742716243581,-500.0,0.00021225,2]
[356578090,1742716243591,-156.01432348,0.00021225,2]
[356578091,1742716243600,-500.0,0.00021225,2]
[356578092,1742716243609,-503.56321611,0.00021225,2]
[356578093,1742716243618,-500.0,0.00021225,2]
[356578094,1742716243627,-160.25593282,0.00021225,2]
[356578095,1742716243637,-244.5695288,0.00021287,2]
[356578096,1742716243646,-1000.0,0.00021369,2]
[356578097,1742716243655,-500.0,0.00021454,2]
[356578098,1742716243663,-500.0,0.00021454,2]
[356578099,1742716243672,-500.0,0.00021454,2]
[356578100,1742716243682,-500.0,0.00021454,2]
[356578101,1742716243691,-500.0,0.00021454,2]
[356578102,1742716243700,-500.0,0.00021454,2]
[356578103,1742716243709,-500.0,0.00021454,2]
[356578104,1742716243719,-500.0,0.00021454,2]
[356578105,1742716243728,-500.0,0.00021454,2]
[356578106,1742716243738,-266.0,0.00021454,2]
[356578107,1742716243747,-500.0,0.00021454,2]
[356578108,1742716243757,-500.0,0.00021454,2]
[356578109,1742716243766,-500.0,0.00021454,2]
[356578110,1742716243776,-500.0,0.00021454,2]
[356578111,1742716243785,-500.0,0.00021454,2]
[356578112,1742716243794,-500.0,0.00021454,2]
[356578113,1742716243803,-500.0,0.00021454,2]
[356578114,1742716243812,-500.0,0.00021454,2]
[356578115,1742716243822,-500.0,0.00021454,2]
[356578116,1742716243831,-500.0,0.00021454,2]
[356578117,1742716243840,-500.0,0.00021454,2]
[356578118,1742716243854,-500.0,0.00021454,2]
[356578119,1742716243864,-556.8145585,0.00021454,2]
[356578120,1742716243873,-888.0,0.0002147,2]
[356578121,1742716243882,-888.0,0.0002147,2]
[356578122,1742716243893,-888.0,0.0002147,2]
[356578123,1742716243902,-888.0,0.0002147,2]
[356578124,1742716243912,-888.0,0.0002147,2]
[356578125,1742716243922,-888.0,0.0002147,2]
[356578126,1742716243932,-888.0,0.0002147,2]
[356578127,1742716243942,-888.0,0.0002147,2]
[356578128,1742716243951,-888.0,0.0002147,2]
[356578129,1742716243960,-888.0,0.0002147,2]
[356578130,1742716243970,-888.0,0.0002147,2]
[356578131,1742716243979,-888.0,0.0002147,2]
[356578132,1742716243989,-888.0,0.0002147,2]
[356578133,1742716243998,-888.0,0.0002147,2]
[356578134,1742716244007,-888.0,0.0002147,2]
[356578135,1742716244016,-888.0,0.0002147,2]
[356578136,1742716244026,-888.0,0.0002147,2]
[356578137,1742716244035,-888.0,0.0002147,2]
[356578138,1742716244044,-888.0,0.0002147,2]
[356578139,1742716244055,-888.0,0.0002147,2]
[356578140,1742716244065,-888.0,0.0002147,2]
[356578141,1742716244076,-888.0,0.0002147,2]
[356578142,1742716244086,-888.0,0.0002147,2]
[356578143,1742716244098,-888.0,0.0002147,2]
[356578144,1742716244108,-888.0,0.0002147,2]
[356578145,1742716244117,-888.0,0.0002147,2]
[356578146,1742716244127,-888.0,0.0002147,2]
[356578147,1742716244136,-888.0,0.0002147,2]
[356578148,1742716244145,-888.0,0.0002147,2]
[356578149,1742716244155,-888.0,0.0002147,2]
[356578150,1742716244164,-888.0,0.0002147,2]
[356578151,1742716244173,-888.0,0.0002147,2]
[356578152,1742716244183,-888.0,0.0002147,2]
[356578153,1742716244192,-888.0,0.0002147,2]
[356578154,1742716244201,-888.0,0.0002147,2]
[356578155,1742716244210,-888.0,0.0002147,2]
[356578156,1742716244220,-888.0,0.0002147,2]
[356578157,1742716244229,-888.0,0.0002147,2]
[356578158,1742716244239,-888.0,0.0002147,2]
[356578159,1742716244248,-888.0,0.0002147,2]
[356578160,1742716244257,-888.0,0.0002147,2]
[356578161,1742716244265,-888.0,0.0002147,2]
[356578162,1742716244275,-888.0,0.0002147,2]
[356578163,1742716244284,-888.0,0.0002147,2]
[356578164,1742716244293,-888.0,0.0002147,2]
[356578165,1742716244302,-888.0,0.0002147,2]
[356578166,1742716244311,-888.0,0.0002147,2]
[356578167,1742716244320,-888.0,0.0002147,2]
[356578168,1742716244329,-888.0,0.0002147,2]
[356578169,1742716244339,-888.0,0.0002147,2]
[356578170,1742716244348,-888.0,0.0002147,2]
[356578171,1742716244357,-150.2,0.0002147,2]
[356578172,1742716244367,-155.94661049,0.0002147,2]
[356578173,1742716244376,-152.14973376,0.0002147,2]
[356578174,1742716244385,-150.8564952,0.0002147,2]
[356578175,1742716244396,-151.0,0.0002147,2]
[356578176,1742716244405,-151.0,0.0002147,2]
[356578177,1742716244414,-156.587,0.00021489,2]
[356578178,1742716244423,-150.2,0.00021497,2]
[356578179,1742716244432,-171.382599,0.00021519,2]
[356578180,1742716244442,-171.382599,0.00021519,2]
[356578181,1742716244451,-1001.303957,0.00021519,2]
[356578182,1742716244461,-264.857,0.00021519,2]
[356578183,1742716244470,-568.21,0.00021519,2]
[356578184,1742716244480,-2264.0,0.00021519,2]
[356578185,1742716244489,-1915.0,0.00021519,2]
[356578186,1742716244498,-150.0,0.00021519,2]
[356578187,1742716244507,-150.2,0.00021525,2]
[356578188,1742716244517,-420.0,0.00021541,2]
[356578189,1742716244526,-150.2,0.00021552,2]
[356578190,1742716244535,-171.382599,0.00021553,2]
[356578191,1742716244545,-171.382599,0.00021553,2]
[356578192,1742716244554,-226472.13277868,0.00021554,5]
[356578195,1742716247344,-343.62834655,0.00021519,2]
[356578198,1742717113739,171.8255368,0.00010959,2]
[356578199,1742717242332,-150.0,0.00017856,2]
[356578200,1742717242356,-131.57710775,0.00018218,2]
[356578201,1742717359139,-284.68003913,0.00018036,2]
[356578202,1742717359160,-230.05603122,0.00018218,2]
[356578203,1742717361107,-69.94396878,0.00018218,2]
[356578204,1742717361172,-500.0,0.00018219,2]
[356578205,1742717361196,-269.95229411,0.00018219,2]
[356578206,1742717361219,-500.0,0.00018219,2]
[356578207,1742717361242,-500.0,0.00018219,2]
[356578208,1742717361265,-404.74747574,0.00018219,2]
[356578209,1742717361286,-207.35878646,0.00018219,2]
[356578210,1742717361307,-578.8722724,0.00018219,2]
[356578211,1742717361329,-500.0,0.00018219,2]
[356578212,1742717361350,-500.0,0.0001822,2]
[356578213,1742717361372,-500.0,0.0001822,2]
[356578214,1742717361394,-500.0,0.0001822,2]
[356578215,1742717361416,-500.0,0.0001822,2]
[356578216,1742717361437,-500.0,0.0001822,2]
[356578217,1742717361458,-500.0,0.0001822,2]
[356578218,1742717361478,-891.55480708,0.0001822,2]
[356578219,1742717361500,-500.0,0.0001822,2]
[356578220,1742717361522,-900.0,0.0001822,2]
[356578221,1742717361543,-20000.0,0.0001822,2]
[356578222,1742717361564,-3996.31285038,0.00018695,2]
[356578223,1742717365140,-591.3887265,0.00018695,2]
[356578246,1742717432490,-85.82292042,0.00018695,2]
[356578247,1742717432501,-1854.82682944,0.00019773,2]
[356578248,1742717432511,-300.0,0.00020204,2]
[356578249,1742717432523,-20229.9091639,0.00020205,2]
[356578250,1742717432534,-1854.82682937,0.00020574,2]
[356578251,1742717432545,-5000.0,0.00021354,2]
[356578252,1742717432555,-1854.82682937,0.00021375,2]
[356578253,1742717432565,-1152.57266829,0.00021396,2]
[356578254,1742717432575,-945.05470492,0.00021396,2]
[356578255,1742717432584,-151.0,0.00021441,2]
[356578256,1742717432593,-600.0,0.00021441,2]
[356578257,1742717432603,-7315.6686242,0.00021454,2]
[356578258,1742717432616,-606.84252089,0.00021454,2]
[356578259,1742717432633,-2007.73760735,0.00021454,2]
[356578260,1742717432644,-2816.53095244,0.00021454,2]
[356578266,1742717438239,-211.63860842,0.00020204,2]
[356578267,1742717438248,-45.50292086,0.00021453,2]
[356578268,1742717438292,-166.45621945,0.00021453,2]
[356578269,1742717438301,-26460.40289382,0.00021454,2]
[356578270,1742717438312,-2692.7137372,0.00021454,2]
[356578271,1742717438323,-22349.35992547,0.00021454,2]
[356578282,1742717440874,-4100.62691087,0.00021454,2]
[356578283,1742717440886,-949.75236137,0.00021454,2]
[356578284,1742717440905,-111334.97633337,0.00021454,2]
[356578285,1742717441027,-415.46854538,0.00021454,2]
[356578291,1742717443588,-631.17188343,0.00021454,2]
[356578299,1742717446580,-801.48332635,0.00021454,2]
[356578307,1742718116747,-1505.01560162,0.00018038,2]
[356578308,1742718116781,-390.98439838,0.0001822,2]
[356578309,1742718336115,-322.17148166,0.00018038,2]
[356578311,1742718427078,-109.01560162,0.0001822,2]
[356578312,1742718427100,-43.77762714,0.0001822,2]
[356578329,1742718519327,1499.99127202,8e-05,5]
[356578330,1742718546081,-577.28526804,0.0001812,2]
[356578331,1742718546108,-456.22237286,0.0001822,2]
[356578332,1742718546132,-599.50216094,0.0001822,2]
[356578333,1742718546156,-399.15784326,0.0001822,2]
[356578362,1742718632674,-100.84215674,0.0001822,2]
[356578363,1742718632684,-2200.2538069,0.00020084,2]
[356578364,1742718632694,-257.5683169,0.00020205,2]
[356578365,1742718632704,-202.922946,0.00020225,2]
[356578366,1742718632715,-200.0,0.000203,2]
[356578367,1742718632724,-183.57931557,0.00020824,2]
[356578368,1742718632734,-1048.0,0.00021,2]
[356578369,1742718632744,-1159.2667684,0.0002124,2]
[356578370,1742718632754,-152.40828145,0.0002124,2]
[356578371,1742718632765,-404.00080194,0.0002125,2]
[356578372,1742718632774,-300.0,0.00021253,2]
[356578373,1742718632784,-2164.1079337,0.00021254,2]
[356578390,1742718638434,-337.90960781,0.00021254,2]
[356578391,1742718638487,-2286.29673295,0.00021254,2]
[356578392,1742718638499,-211.68572554,0.00021254,2]
[356578393,1742718638509,-4034.03600797,0.00021316,2]
[356578394,1742718638542,-965.96399203,0.00021316,2]
[356578395,1742718638551,-500.0,0.00021338,2]
[356578396,1742718638561,-500.0,0.00021338,2]
[356578397,1742718638570,-500.0,0.00021338,2]
[356578398,1742718638579,-500.0,0.00021338,2]
[356578399,1742718638588,-500.0,0.00021338,2]
[356578400,1742718638598,-500.0,0.00021338,2]
[356578401,1742718638607,-500.0,0.00021338,2]
[356578402,1742718638616,-500.0,0.00021338,2]
[356578403,1742718638626,-500.0,0.00021338,2]
[356578404,1742718638635,-500.0,0.00021338,2]
[356578405,1742718638644,-500.0,0.00021338,2]
[356578406,1742718638654,-500.0,0.00021338,2]
[356578407,1742718638663,-500.0,0.00021338,2]
[356578408,1742718638672,-500.0,0.00021338,2]
[356578409,1742718638682,-500.0,0.00021338,2]
[356578410,1742718638691,-500.0,0.00021338,2]
[356578411,1742718638700,-500.0,0.00021338,2]
[356578412,1742718638709,-500.0,0.00021338,2]
[356578413,1742718638718,-34.03600797,0.00021338,2]
[356578429,1742718640898,-465.96399203,0.00021338,2]
[356578430,1742718640907,-500.0,0.00021338,2]
[356578431,1742718640917,-500.0,0.00021338,2]
[356578432,1742718640926,-19.8595071,0.00021338,2]
[356578433,1742718640937,-399.88215713,0.00021338,2]
[356578438,1742718643669,-80.25833577,0.00021338,2]
[356578439,1742718643679,-500.0,0.00021338,2]
[356578440,1742718643688,-500.0,0.00021338,2]
[356578441,1742718643697,-500.0,0.00021338,2]
[356578442,1742718643706,-589.66143822,0.00021338,2]
[356578443,1742718643716,-500.0,0.00021338,2]
[356578444,1742718643725,-500.0,0.00021338,2]
[356578445,1742718643735,-500.0,0.00021338,2]
[356578446,1742718643744,-330.08022351,0.00021338,2]
[356578465,1742718646650,-169.91977649,0.00021338,2]
[356578466,1742718646661,-105.24678196,0.00021338,2]
[356578469,1742719590137,-239.10381584,0.00017939,2]
[356578470,1742719643140,-198.75820887,0.0001802,2]
[356578471,1742719643165,-15.14732076,0.0001812,2]
[356578472,1742719649087,-256.8244801,0.0001812,2]
[356578474,1742719749165,-5066.11787659,0.0001812,2]
[356578475,1742719749188,-268.44143612,0.0001822,2]
[356578476,1742719753191,-151.0911691,0.0001822,2]
[356578496,1742719831745,-80.97833346,0.0001822,2]
[356578497,1742719831755,-801.0,0.0002,2]
[356578498,1742719831764,-162.93352689,0.00020699,5]
[356578499,1742719831773,-151.0,0.00021227,2]
[356578500,1742719831783,-1000.0,0.00021227,2]
[356578501,1742719831792,-600.0,0.00021227,2]
[356578502,1742719831802,-500.0,0.00021234,2]
[356578503,1742719831812,-422.02472019,0.00021234,2]
[356578504,1742719831824,-500.0,0.00021234,2]
[356578505,1742719831833,-500.0,0.00021234,2]
[356578506,1742719831842,-500.0,0.00021234,2]
[356578507,1742719831851,-500.0,0.00021234,2]
[356578508,1742719831861,-500.0,0.00021234,2]
[356578509,1742719831870,-500.0,0.00021234,2]
[356578510,1742719831880,-500.0,0.00021234,2]
[356578511,1742719831889,-500.0,0.00021234,2]
[356578512,1742719831899,-500.0,0.00021234,2]
[356578513,1742719831908,-449.83709693,0.00021234,2]
[356578514,1742719831924,-50.16290307,0.00021234,2]
[356578515,1742719831934,-500.0,0.00021234,2]
[356578516,1742719831943,-355.33083622,0.00021234,2]
[356578517,1742719831966,-144.66916378,0.00021234,2]
[356578518,1742719831975,-365.31840232,0.00021234,2]
[356578519,1742719831984,-622.68917801,0.00021234,2]
[356578520,1742719831994,-500.0,0.00021234,2]
[356578521,1742719832003,-500.0,0.00021234,2]
[356578522,1742719832013,-500.0,0.00021234,2]
[356578523,1742719832022,-500.0,0.00021234,2]
[356578524,1742719832031,-500.0,0.00021234,2]
[356578525,1742719832041,-500.0,0.00021234,2]
[356578526,1742719832050,-500.0,0.00021234,2]
[356578527,1742719832059,-500.0,0.00021234,2]
[356578528,1742719832069,-500.0,0.00021234,2]
[356578529,1742719832078,-500.0,0.00021234,2]
[356578530,1742719832088,-500.0,0.00021234,2]
[356578531,1742719832097,-499.99999999,0.00021234,2]
[356578532,1742719832106,-300.0,0.00021234,2]
[356578533,1742719832116,-3589.76684511,0.00021235,2]
[356578534,1742719832126,-156.11,0.00021237,2]
[356578535,1742719832135,-10797.22752,0.00021238,2]
[356578536,1742719832145,-423.52513479,0.00021238,2]
[356578537,1742719832154,-5000.0,0.00021239,2]
[356578538,1742719832166,-1232.81409519,0.00021239,2]
[356578539,1742719832190,-451.79522765,0.00021239,2]
[356578545,1742719837650,-305.8,0.0002123,3]
[356578546,1742719837660,-694.2,0.00021239,2]
[356578619,1742719840051,-2687.98980311,0.00021239,2]
[356578664,1742719845953,-21591.17408055,0.00021239,2]
[356578665,1742719845962,-29088.72802053,0.0002124,2]
[356578668,1742720850315,-159.91830583,0.00017679,2]
[356578679,1742720946156,-17.46664166,0.00017679,2]
[356578680,1742720946180,-483.09775834,0.0001822,2]
[356578682,1742720955108,-183.55659286,0.00017502,2]
[356578686,1742720992569,-101.12344627,0.00017502,2]
[356578687,1742720992591,-16.90224166,0.0001822,2]
[356578688,1742720992613,-57.58166388,0.00020097,2]
[356578691,1742721002522,-388.46369387,0.00020098,2]
[356578692,1742721006281,-274.08920111,0.00020097,2]
[356578695,1742721011780,-25.91079889,0.00020097,2]
[356578696,1742721011820,-142.34920111,0.00020098,2]
[356578697,1742721016824,-225.91079889,0.00020098,2]
[356578706,1742721031914,-188.5442356,0.00020098,2]
[356578744,1742721035286,-425.67750111,0.00020098,2]
[356578751,1742721037852,-1495.08106259,0.00020098,2]
[356578752,1742721037864,-7944.20702583,0.00020098,2]
[356578753,1742721037874,-257.568315,0.00020128,2]
[356578754,1742721037883,-3000.0,0.00021031,2]
[356578755,1742721037893,-1216.3040317,0.00021038,2]
[356578756,1742721037903,-1860.53688689,0.00021039,2]
[356578757,1742721037912,-500.0,0.00021049,2]
[356578758,1742721037921,-500.0,0.00021049,2]
[356578759,1742721037930,-500.0,0.00021049,2]
[356578760,1742721037939,-500.0,0.00021049,2]
[356578761,1742721037949,-370.24466456,0.00021049,2]
[356578762,1742721037958,-500.0,0.00021049,2]
[356578763,1742721037967,-277.13350312,0.00021049,2]
[356578764,1742721037976,-1860.53688687,0.0002105,2]
[356578765,1742721037985,-1860.53688687,0.00021061,2]
[356578766,1742721037995,-1860.53688687,0.00021071,2]
[356578767,1742721038004,-5658.20527674,0.00021073,2]
[356578768,1742721038013,-1860.53688687,0.00021082,2]
[356578769,1742721038023,-600.0,0.00021127,2]
[356578770,1742721038032,-305.8,0.0002113,3]
[356578771,1742721038041,-458.46136736,0.00021138,2]
[356578772,1742721038051,-3341.24506226,0.00021138,2]
[356578773,1742721038707,-162.47885188,0.00021138,2]
[356578775,1742721040405,-1265.62853516,0.00021138,2]
[356578794,1742721047399,-259.07294193,0.00020927,2]
[356578796,1742721054367,-150.0,0.00020554,7]
[356578797,1742721057465,-176.55763635,0.00020554,7]
[356578798,1742721062480,-150.0,0.00017579,2]
[356578799,1742721068003,-50.000001,0.00017579,2]
[356578800,1742721068039,-100.999999,0.00020553,2]
[356578801,1742721076714,-151.0,0.00020553,2]
[356578802,1742721077637,-48.000001,0.00020553,2]
[356578803,1742721077663,-102.999999,0.00020554,7]
[356578804,1742721081155,-70.44236465,0.00020554,7]
[356578805,1742721081177,-229.55763535,0.00020554,7]
[356578806,1742721088989,-184.98571916,0.00020554,7]
[356578807,1742721094137,-85.45664549,0.00020554,7]
[356578808,1742721094162,-214.54335451,0.00020554,7]
[356578810,1742721103223,-162.48044704,0.00020554,7]
[356578811,1742721113064,-122.97619845,0.00020554,7]
[356578812,1742721113087,-51.91784789,0.00020554,7]
[356578813,1742721123201,-262.31674087,0.0002,2]
[356578814,1742721134772,-186.31569258,0.00020554,7]
[356578815,1742721140000,-150.0,0.0002,2]
[356578817,1742721144571,-151.0,0.0002,2]
[356578818,1742721150582,-165.03549918,0.0002,2]
[356578819,1742721153974,-154.5175,0.0002,2]
[356578820,1742721158238,-300.0,0.0002,2]
[356578821,1742721166806,-151.43978675,0.0002,2]
[356578822,1742721183248,-150.37076383,0.0002,2]
[356578826,1742721232023,-500.0,0.000198,2]
[356578827,1742721244607,-165.03549918,0.000198,2]
[356578828,1742721303932,-430.9565,0.00016022,2]
[356578830,1742721345915,-271.0826162,0.00016022,2]
[356578831,1742721363349,-43.22881327,0.00016022,2]
[356578832,1742721363373,-12.50950152,0.000198,2]
[356578833,1742721363396,-118.5071149,0.000199,2]
[356578834,1742721425013,-278.01943339,0.000199,2]
[356578835,1742721476241,-234.24163854,0.000199,2]
[356578836,1742721485243,-185.58708785,0.000199,2]
[356578837,1742721493037,-153.0,0.00019701,2]
[356578839,1742721544997,-32.58708785,0.00019701,2]
[356578840,1742721545024,-120.08291215,0.000199,2]
[356578841,1742721608462,-153.0,0.00019701,2]
[356578842,1742721608484,-54.72381572,0.000199,2]
[356578843,1742721620660,-200.76375645,0.000199,2]
[356578844,1742721620686,-86.26377899,0.0002,2]
[356578845,1742721644744,-183.84304313,0.0002,2]
[356578846,1742721649611,-177.298009,0.000198,2]
[356578847,1742721719307,-152.67,0.00019338,2]
[356578866,1742721836692,-291.426376,0.00019145,2]
[356578868,1742721870807,-208.573624,0.00019145,2]
[356578869,1742721903081,-151.0,0.00019145,2]
[356578874,1742721946093,-7.68452479,0.00019145,2]
[356578875,1742721946115,-300.0,0.00019704,2]
[356578876,1742721946137,-14.48695687,0.00019705,2]
[356578877,1742721948212,-363.55976146,0.00019705,2]
[356578878,1742721952356,-345.77036011,0.00019508,2]
[356578880,1742721964350,-150.39660977,0.00019177,2]
[356578886,1742722039131,-488.02446391,0.00019177,2]
[356578887,1742722040036,-160.0,0.00019177,2]
[356578888,1742722049073,-1866.27640876,0.00019177,2]
[356578889,1742722049780,-176.22338134,0.00019177,2]
[356578890,1742722052101,-159.07913622,0.00019177,2]
[356578891,1742722052123,-154.22963989,0.00019508,2]
[356578892,1742722052145,-300.0,0.00019703,2]
[356578893,1742722052168,-20.19222155,0.00019704,2]
[356578895,1742722070897,-155.84220323,0.00018,2]
[356578897,1742722075928,-152.67,0.00016,2]
[356578904,1742722114608,-150.0,0.00016,2]
[356578910,1742722146080,-625.61999737,0.00016,2]
[356578911,1742722146102,-1383.36940221,0.00017,2]
[356578912,1742722146365,-52.60692211,0.00018,2]
[356578913,1742722146387,-300.0,0.00019703,2]
[356578914,1742722146411,-479.80777845,0.00019704,2]
[356578915,1742722146433,-546.25541775,0.00019704,2]
[356578916,1742722146453,-234.24163854,0.00019704,2]
[356578917,1742722146476,-581.45159308,0.00019704,2]
[356578918,1742722146498,-553.74,0.00019704,2]
[356578919,1742722146518,-8384.92750635,0.00019704,2]
[356578920,1742722146573,-8363.47249365,0.00019704,2]
[356578921,1742722146594,-4454.5,0.00019704,2]
[356578922,1742722146615,-22347.34903671,0.00019705,2]
[356578927,1742722151099,-2915.0915494,0.00018773,2]
[356578928,1742722151123,-1958.2622506,0.00019705,2]
[356578956,1742722232222,-1192.54,0.00019704,2]
[356578957,1742722232233,-1017.68,0.00019704,2]
[356578958,1742722232244,-500.0,0.00019704,2]
[356578959,1742722232255,-9026.1,0.00019704,2]
[356578960,1742722232265,-1850.61,0.00019704,2]
[356578961,1742722232275,-500.0,0.00019704,2]
[356578962,1742722232285,-501.20532211,0.00019704,2]
[356578963,1742722232295,-729.48,0.00019704,2]
[356578964,1742722232305,-216.34199436,0.00019705,2]
[356578965,1742722232316,-300.0,0.00019977,2]
[356578966,1742722232326,-553.74,0.00019978,2]
[356578967,1742722232336,-13328.39993344,0.00019978,2]
[356578968,1742722232349,-3420.00006656,0.00019978,2]
[356578969,1742722232359,-626.63883779,0.00019978,2]
[356578973,1742722238023,-500.0,0.00019704,2]
[356578974,1742722238036,-500.0,0.00019704,2]
[356578975,1742722238046,-3827.86116221,0.00019978,2]
[356578976,1742722238056,-1192.54,0.00019978,2]
[356578977,1742722238066,-1017.68,0.00019978,2]
[356578978,1742722238075,-500.0,0.00019978,2]
[356578979,1742722238084,-9026.1,0.00019978,2]
[356578980,1742722238094,-1850.61,0.00019978,2]
[356578981,1742722238104,-500.0,0.00019978,2]
[356578982,1742722238114,-729.48,0.00019978,2]
[356578983,1742722238123,-500.0,0.00019978,2]
[356578984,1742722238133,-250.87613581,0.0002,2]
[356578986,1742722238143,-690.92499495,0.00020045,2]
[356578988,1742722238152,-1386.91213471,0.00020152,2]
[356578989,1742722238161,-553.74,0.00020252,2]
[356578990,1742722238171,-16748.4,0.00020252,2]
[356578992,1742722238180,-4454.5,0.00020252,2]
[356578993,1742722238190,-1192.54,0.00020252,2]
[356578994,1742722238199,-1017.68,0.00020252,2]
[356578995,1742722238209,-500.0,0.00020252,2]
[356578996,1742722238218,-9026.1,0.00020252,2]
[356578997,1742722238227,-1850.61,0.00020252,2]
[356578998,1742722238238,-500.0,0.00020252,2]
[356578999,1742722238248,-729.48,0.00020252,2]
[356579000,1742722238258,-500.0,0.00020252,2]